bitfinex/quotes_BTCUSD_20241013
["timestamp","ask_amount","ask_price","bid_price","bid_amount"]
[1728801147208,1.35880879,62983.0,62982.0,0.11373187]
[1728801147472,1.34980879,62983.0,62982.0,0.11373187]
[1728801147928,1.35880879,62983.0,62982.0,0.11373187]
[1728801148165,1.34980879,62983.0,62982.0,0.11373187]
[1728801148402,1.3179918,62983.0,62982.0,0.11373187]
[1728801148633,1.27235843,62983.0,62982.0,0.12173187]
[1728801149325,1.27135843,62983.0,62982.0,0.11773187]
[1728801149573,1.27235843,62983.0,62982.0,0.12273187]
[1728801150489,1.27135843,62983.0,62982.0,0.11873187]
[1728801150717,1.27035843,62983.0,62982.0,0.27250687]
[1728801150952,1.27135843,62983.0,62982.0,0.27650687]
[1728801151212,0.00735843,62983.0,62982.0,0.11773187]
[1728801152532,0.00835843,62983.0,62982.0,0.12173187]
[1728801153431,0.00835843,62983.0,62982.0,0.11676]
[1728801153712,0.00635843,62983.0,62982.0,0.11373187]
[1728801153950,0.00735843,62983.0,62982.0,0.11673187]
[1728801154197,0.00835843,62983.0,62982.0,0.12073187]
[1728801157211,0.00835843,62983.0,62982.0,0.11576]
[1728801157479,0.00835843,62983.0,62982.0,0.12073187]
[1728801164803,0.00835843,62983.0,62982.0,0.12073186]
[1728801166819,0.00835843,62983.0,62982.0,0.66724204]
[1728801167732,0.00835843,62983.0,62982.0,0.76724204]
[1728801167967,0.00164,62987.0,62982.0,0.76724204]
[1728801167968,0.00164,62987.0,62983.0,0.023]
[1728801168194,0.00164,62987.0,62986.0,0.382005]
[1728801168434,0.00164,62987.0,62986.0,0.54820087]
[1728801168665,0.00164,62987.0,62986.0,0.54820002]
[1728801169795,0.00264,62987.0,62986.0,0.54722901]
[1728801170018,0.00264,62987.0,62986.0,0.55220002]
[1728801171142,0.00364,62987.0,62986.0,0.56220002]
[1728801171864,0.00264,62987.0,62986.0,0.55220002]
[1728801172334,0.00264,62987.0,62986.0,0.56220002]
[1728801172577,0.00264,62987.0,62986.0,0.55820002]
[1728801172850,0.00364,62987.0,62986.0,0.56720002]
[1728801173517,0.01136039,62987.0,62986.0,0.56720002]
[1728801174222,0.01036039,62987.0,62986.0,0.55720002]
[1728801174681,0.01136039,62987.0,62986.0,0.56520002]
[1728801174915,0.01136039,62987.0,62986.0,0.55720002]
[1728801175136,0.01236039,62987.0,62986.0,0.56520002]
[1728801176107,0.01236039,62987.0,62986.0,0.56022901]
[1728801176350,0.01236039,62987.0,62986.0,0.56520002]
[1728801177596,0.01236039,62987.0,62986.0,0.05381101]
[1728801177597,0.28303356,62987.0,62986.0,0.05381101]
[1728801177854,1.54703356,62987.0,62986.0,0.05381101]
[1728801178079,1.54703356,62987.0,62986.0,0.04884]
[1728801178547,1.54703356,62987.0,62986.0,0.05381157]
[1728801180163,1.54703356,62987.0,62986.0,0.04884]
[1728801187020,1.54703356,62987.0,62986.0,0.05381156]
[1728801188654,1.54703356,62987.0,62986.0,0.05381167]
[1728801189573,1.54703356,62987.0,62986.0,0.04884]
[1728801190492,1.54703356,62987.0,62986.0,0.05381164]
[1728801190715,1.54703356,62987.0,62986.0,0.04884]
[1728801191392,1.59464184,62987.0,62986.0,0.05381167]
[1728801192758,1.59464184,62987.0,62986.0,0.05463167]
[1728801192977,1.38827156,62987.0,62986.0,0.05463167]
[1728801193223,1.43587984,62987.0,62986.0,0.05463167]
[1728801193462,1.59464184,62987.0,62986.0,0.05463167]
[1728801193924,1.54703356,62987.0,62986.0,0.05463161]
[1728801194385,1.43587984,62987.0,62986.0,0.05463161]
[1728801197091,1.38827156,62987.0,62986.0,0.05463161]
[1728801198670,1.43587984,62987.0,62986.0,0.05463161]
[1728801198904,1.38827156,62987.0,62986.0,0.05463161]
[1728801201390,1.27636039,62987.0,62986.0,0.05463161]
[1728801201627,1.27636039,62987.0,62986.0,0.05463153]
[1728801202474,1.32396867,62987.0,62986.0,0.21339653]
[1728801202880,1.27636039,62987.0,62986.0,0.21339653]
[1728801204273,1.27636039,62987.0,62986.0,0.49512054]
[1728801204484,1.27636039,62987.0,62986.0,0.58643791]
[1728801204708,1.27636039,62987.0,62986.0,0.57452054]
[1728801205140,1.26864,62987.0,62986.0,0.58643768]
[1728801205362,1.27635292,62987.0,62986.0,0.57452054]
[1728801207470,0.01235292,62987.0,62986.0,0.57452054]
[1728801208847,0.01235292,62987.0,62986.0,0.56954901]
[1728801209308,0.01235292,62987.0,62986.0,0.57452007]
[1728801211105,0.01235292,62987.0,62986.0,0.58346054]
[1728801212444,0.01235292,62987.0,62986.0,0.59537436]
[1728801215658,0.00464,62987.0,62986.0,0.59537436]
[1728801215865,0.01235382,62987.0,62986.0,0.59537436]
[1728801216072,0.00464,62987.0,62986.0,0.59537436]
[1728801216294,0.01235382,62987.0,62986.0,0.59537436]
[1728801216502,0.00464,62987.0,62986.0,0.59537436]
[1728801216711,0.01235382,62987.0,62986.0,0.59537296]
[1728801216917,0.00464,62987.0,62986.0,0.59537296]
[1728801217167,0.01235382,62987.0,62986.0,0.59537296]
[1728801217379,0.00464,62987.0,62986.0,0.58346054]
[1728801220383,0.00464,62987.0,62986.0,0.57848948]
[1728801220638,0.00464,62987.0,62986.0,0.58346054]
[1728801220997,0.00464,62987.0,62986.0,0.5953706]
[1728801221206,0.00464,62987.0,62986.0,0.58346054]
[1728801221592,0.01237841,62987.0,62986.0,0.59537167]
[1728801221800,0.00464,62987.0,62986.0,0.59537167]
[1728801222007,0.01237841,62987.0,62986.0,0.59537167]
[1728801222215,0.00464,62987.0,62986.0,0.59537167]
[1728801222423,0.01237841,62987.0,62986.0,0.58346054]
[1728801227792,0.01237841,62987.0,62986.0,0.57848948]
[1728801228044,0.01237841,62987.0,62986.0,0.58346054]
[1728801230166,0.01237841,62987.0,62986.0,0.57848948]
[1728801231573,0.01237841,62987.0,62986.0,0.58346054]
[1728801233270,0.01237841,62987.0,62986.0,0.57848948]
[1728801233501,0.01237841,62987.0,62986.0,0.58346054]
[1728801234183,0.01237841,62987.0,62986.0,0.59538222]
[1728801235951,0.01237841,62987.0,62986.0,0.49788222]
[1728801236895,0.01237841,62987.0,62986.0,0.49291116]
[1728801237118,0.01237841,62987.0,62986.0,0.48596056]
[1728801237579,0.01237841,62987.0,62986.0,0.49788569]
[1728801239187,0.01237841,62987.0,62986.0,0.41848569]
[1728801242175,0.01237841,62987.0,62986.0,0.40656056]
[1728801242397,0.01237841,62987.0,62986.0,0.41848539]
[1728801245649,0.01237841,62987.0,62986.0,0.68978539]
[1728801246101,0.01948,62993.0,62992.0,0.48489]
[1728801246326,0.01948,62993.0,62992.0,0.77492109]
[1728801246549,0.02726723,62993.0,62992.0,0.77492109]
[1728801247041,0.01948,62993.0,62992.0,0.77492109]
[1728801247586,0.01948,62993.0,62992.0,0.78892109]
[1728801247587,0.02048,62993.0,62992.0,0.78892109]
[1728801248215,0.02048,62993.0,62992.0,0.81192109]
[1728801248216,0.02248,62993.0,62992.0,0.81192109]
[1728801248449,0.02248,62993.0,62992.0,0.82817846]
[1728801248905,0.02148,62993.0,62992.0,0.81917846]
[1728801249389,0.01948,62993.0,62992.0,0.79117846]
[1728801251005,0.02048,62993.0,62992.0,0.80517846]
[1728801251261,0.02048,62993.0,62992.0,0.81917846]
[1728801251494,0.02148,62993.0,62992.0,0.80517735]
[1728801251677,0.02048,62993.0,62992.0,0.80517735]
[1728801252088,0.02148,62993.0,62992.0,0.81917735]
[1728801254847,0.02048,62993.0,62992.0,0.80517735]
[1728801255082,0.02148,62993.0,62992.0,0.81420738]
[1728801255295,0.02148,62993.0,62992.0,0.80725252]
[1728801255499,0.02148,62993.0,62992.0,0.81913333]
[1728801255734,0.02048,62993.0,62992.0,0.80513333]
[1728801256557,0.02148,62993.0,62992.0,0.81913333]
[1728801259015,0.02148,62993.0,62992.0,0.81913061]
[1728801267388,0.02148,62993.0,62992.0,0.84061061]
[1728801270561,0.02148,62993.0,62992.0,0.83564071]
[1728801270773,0.02148,62993.0,62992.0,0.84061061]
[1728801273193,0.02148,62993.0,62992.0,0.95252178]
[1728801273435,0.02148,62993.0,62992.0,0.84061061]
[1728801273661,0.02148,62993.0,62992.0,0.84261061]
[1728801274130,0.02148,62993.0,62992.0,0.95452178]
[1728801274339,0.02148,62993.0,62992.0,0.98716184]
[1728801274573,0.02148,62993.0,62992.0,1.00401916]
[1728801274803,0.02048,62993.0,62992.0,0.99001916]
[1728801275267,0.02148,62993.0,62992.0,1.00401916]
[1728801275506,0.02048,62993.0,62992.0,0.99001916]
[1728801275749,0.01948,62993.0,62992.0,0.97601916]
[1728801276445,0.01948,62993.0,62992.0,1.03747289]
[1728801276660,0.01948,62993.0,62992.0,1.02347289]
[1728801276895,0.01948,62993.0,62992.0,0.79965055]
[1728801277120,0.01948,62993.0,62992.0,1.05147292]
[1728801277554,0.01948,62993.0,62992.0,1.03747292]
[1728801278059,0.01948,62993.0,62992.0,1.05147014]
[1728801278253,0.01948,62993.0,62992.0,1.0514701]
[1728801278464,0.01948,62993.0,62992.0,1.0374701]
[1728801279128,0.01948,62993.0,62992.0,1.0514701]
[1728801279334,0.01948,62993.0,62992.0,1.0374701]
[1728801279542,0.01948,62993.0,62992.0,0.99001912]
[1728801279755,0.01948,62993.0,62992.0,1.00201912]
[1728801279987,0.01948,62993.0,62992.0,1.00401912]
[1728801281109,0.01948,62993.0,62992.0,1.0374701]
[1728801281335,0.01948,62993.0,62992.0,1.0494701]
[1728801281619,0.01948,62993.0,62992.0,1.0514701]
[1728801281857,0.01948,62993.0,62992.0,1.0374701]
[1728801282116,0.01948,62993.0,62992.0,1.02558185]
[1728801282351,0.01948,62993.0,62992.0,1.03745936]
[1728801283215,0.01948,62993.0,62992.0,1.05145936]
[1728801283425,0.00073911,63004.0,63003.0,0.190562]
[1728801283664,0.00073911,63004.0,63003.0,0.60354372]
[1728801283863,0.00876173,63004.0,63003.0,0.60354372]
[1728801284289,0.00073911,63004.0,63003.0,0.60354372]
[1728801284716,0.00073911,63004.0,63003.0,0.61754372]
[1728801284927,0.00073911,63004.0,63003.0,0.68113072]
[1728801285859,0.00073911,63004.0,63003.0,0.69016169]
[1728801286076,0.00073911,63004.0,63003.0,0.69512751]
[1728801289663,0.00073911,63004.0,63003.0,0.69015848]
[1728801289872,0.00073911,63004.0,63003.0,0.69512751]
[1728801290084,0.00073911,63004.0,63003.0,0.70440179]
[1728801291467,0.00073911,63004.0,63003.0,0.68755846]
[1728801292595,0.00073911,63004.0,63003.0,0.78555846]
[1728801292828,0.00073911,63004.0,63003.0,0.79052735]
[1728801293061,0.00073911,63004.0,63003.0,0.8024011]
[1728801293308,0.00073911,63004.0,63003.0,0.8044011]
[1728801294172,0.00073911,63004.0,63003.0,0.8839011]
[1728801294450,0.00073911,63004.0,63003.0,0.86705846]
[1728801294677,0.00073911,63004.0,63003.0,0.88390153]
[1728801294891,0.00073911,63004.0,63003.0,0.88554153]
[1728801296059,0.00073911,63004.0,63003.0,0.87154153]
[1728801296304,0.00073911,63004.0,63003.0,0.9834527]
[1728801296545,0.00073911,63004.0,63003.0,1.03290695]
[1728801296786,0.00164,63007.0,63006.0,0.53937734]
[1728801297020,0.00164,63007.0,63006.0,0.89494442]
[1728801298136,0.00164,63007.0,63006.0,0.90894442]
[1728801298389,0.00164,63007.0,63006.0,0.92294442]
[1728801299882,0.00164,63007.0,63006.0,0.97237447]
[1728801300538,0.00164,63007.0,63006.0,1.0198564]
[1728801301047,0.00164,63007.0,63006.0,1.04359736]
[1728801301478,0.00164,63007.0,63006.0,0.97237447]
[1728801302132,0.00164,63007.0,63006.0,1.04359736]
[1728801302393,0.0492178,63016.0,63009.0,0.470047]
[1728801302625,0.0492178,63016.0,63009.0,1.10368613]
[1728801302847,0.0492178,63016.0,63009.0,1.12739038]
[1728801303091,0.0492178,63016.0,63009.0,1.26064493]
[1728801303296,0.0492178,63016.0,63015.0,0.71685434]
[1728801303526,0.0492178,63016.0,63015.0,0.89492142]
[1728801303780,0.23854393,63021.0,63020.0,0.470019]
[1728801303990,0.0498138,63028.0,63027.0,0.158662]
[1728801304201,0.0498138,63028.0,63027.0,0.60348025]
[1728801304435,0.00837215,63028.0,63027.0,0.60348025]
[1728801304659,0.09732,63033.0,63032.0,0.313489]
[1728801304900,0.09732,63033.0,63032.0,0.59159302]
[1728801305104,0.10554464,63033.0,63032.0,0.59159302]
[1728801305321,0.09732,63033.0,63032.0,0.59159302]
[1728801307315,0.09732,63033.0,63032.0,0.61959302]
[1728801307575,0.09732,63033.0,63032.0,0.61959121]
[1728801309108,0.09732,63033.0,63032.0,0.62857089]
[1728801310691,0.09732,63033.0,63032.0,0.35801072]
[1728801310936,0.09732,63033.0,63032.0,0.05984]
[1728801310937,0.44947817,63033.0,63032.0,0.05984]
[1728801311146,0.45818465,63033.0,63032.0,0.05984]
[1728801311805,0.45818465,63033.0,63032.0,0.04584]
[1728801312648,0.334362,63027.0,63026.0,0.05484]
[1728801312857,0.334362,63027.0,63026.0,0.21606401]
[1728801313075,0.34312822,63027.0,63026.0,0.03184]
[1728801313309,0.45503939,63027.0,63026.0,0.03184]
[1728801314258,1.71903939,63027.0,63026.0,0.03684]
[1728801314467,1.71903939,63027.0,63026.0,0.03784]
[1728801314893,1.71903939,63027.0,63026.0,0.04084]
[1728801315105,1.71903939,63027.0,63026.0,0.03784]
[1728801315780,0.158669,63025.0,63022.0,0.03184]
[1728801316004,0.0941,63024.0,63022.0,0.03184]
[1728801316232,0.26146785,63024.0,63022.0,0.03184]
[1728801316901,0.26146785,63024.0,63022.0,0.03584]
[1728801317118,0.26146785,63024.0,63022.0,0.04084]
[1728801317990,0.26146785,63024.0,63022.0,0.03684]
[1728801319517,0.26146785,63024.0,63023.0,0.03680827]
[1728801319941,0.10279785,63024.0,63023.0,0.03680827]
[1728801320848,0.10279785,63024.0,63023.0,0.04180827]
[1728801321264,0.10279785,63024.0,63023.0,0.04680827]
[1728801321747,0.26146685,63024.0,63023.0,0.04680827]
[1728801322189,0.10279785,63024.0,63023.0,0.04680827]
[1728801328607,0.26146685,63024.0,63023.0,0.04680827]
[1728801329541,0.10279785,63024.0,63023.0,0.04680827]
[1728801329789,0.10279785,63024.0,63023.0,0.04184]
[1728801329790,1.60636685,63024.0,63023.0,0.04184]
[1728801330917,1.61136685,63024.0,63023.0,0.01]
[1728801331138,2.01218685,63024.0,63023.0,0.01]
[1728801331568,1.85351785,63024.0,63018.0,0.03184]
[1728801331792,0.332382,63019.0,63018.0,0.03184]
[1728801332225,0.34095892,63019.0,63018.0,0.03184]
[1728801332450,0.18227692,63019.0,63018.0,0.03184]
[1728801333152,0.18227692,63019.0,63017.0,0.03184]
[1728801334058,0.18227692,63019.0,63018.0,0.03184]
[1728801334282,0.18227692,63019.0,63018.0,0.03284]
[1728801334501,0.18227692,63019.0,63018.0,0.03384]
[1728801334724,0.18227692,63019.0,63018.0,0.03184]
[1728801334974,1.44627692,63019.0,63018.0,0.03184]
[1728801335188,1.44627692,63019.0,63017.0,0.002]
[1728801335400,1.44627692,63019.0,63016.0,0.03184]
[1728801335620,1.44627692,63019.0,63018.0,0.001]
[1728801336999,1.44627692,63019.0,63018.0,0.002]
[1728801342267,1.27257692,63019.0,63018.0,0.002]
[1728801342486,1.27257692,63019.0,63018.0,0.37674801]
[1728801342735,1.27257692,63019.0,63018.0,0.48765918]
[1728801342950,1.264,63019.0,63018.0,0.48965918]
[1728801343164,1.27263496,63019.0,63018.0,0.50151463]
[1728801343837,1.27263496,63019.0,63018.0,0.49951463]
[1728801344289,1.27263496,63019.0,63018.0,0.50151463]
[1728801344501,1.27263496,63019.0,63018.0,0.50051463]
[1728801344952,1.27263496,63019.0,63018.0,0.50251463]
[1728801345210,1.27263496,63019.0,63018.0,0.50051463]
[1728801345445,1.27263496,63019.0,63018.0,0.51251463]
[1728801345962,1.27263496,63019.0,63018.0,0.52651463]
[1728801346639,0.00863496,63019.0,63018.0,0.52651463]
[1728801347107,0.00082,63024.0,63023.0,0.213512]
[1728801347347,0.00082,63024.0,63023.0,0.37473601]
[1728801347348,0.00947964,63024.0,63023.0,0.37473601]
[1728801348772,0.00947964,63024.0,63023.0,0.38673601]
[1728801349211,0.00947964,63024.0,63023.0,0.39773601]
[1728801350325,0.00947964,63024.0,63023.0,0.40961295]
[1728801350545,0.00947964,63024.0,63023.0,0.61792412]
[1728801350767,0.00947964,63024.0,63023.0,0.70901902]
[1728801350989,0.00947964,63024.0,63023.0,0.59710785]
[1728801353053,0.00082,63024.0,63023.0,0.59710785]
[1728801353271,0.00082,63024.0,63023.0,0.59709957]
[1728801353500,0.00082,63024.0,63023.0,0.58523091]
[1728801354411,0.00082,63024.0,63023.0,0.5970995]
[1728801354645,0.00082,63024.0,63023.0,0.59709918]
[1728801355089,0.00082,63024.0,63023.0,0.62464874]
[1728801355962,0.00082,63024.0,63023.0,0.61278047]
[1728801356195,0.00082,63024.0,63023.0,0.41859762]
[1728801356423,0.00082,63024.0,63023.0,0.40673091]
[1728801365320,0.00082,63024.0,63023.0,0.24805891]
[1728801365991,0.0094547,63024.0,63023.0,0.24805891]
[1728801366415,0.0094547,63024.0,63023.0,0.40673091]
[1728801370368,0.0094547,63024.0,63023.0,0.24805891]
[1728801371026,0.1681237,63024.0,63023.0,0.07784]
[1728801371490,0.0094547,63024.0,63023.0,0.07784]
[1728801372691,0.0094547,63024.0,63023.0,0.05484]
[1728801387330,0.1681237,63024.0,63023.0,0.05484]
[1728801387961,0.0094547,63024.0,63023.0,0.05484]
[1728801390974,0.0094547,63024.0,63023.0,0.05980834]
[1728801392739,0.1681237,63024.0,63023.0,0.05980834]
[1728801395317,0.1681237,63024.0,63023.0,0.05980834]
[1728801399139,0.21574753,63024.0,63023.0,0.05980834]
[1728801401393,0.21574753,63024.0,63023.0,0.05484]
[1728801401819,0.21574753,63024.0,63023.0,0.05980847]
[1728801402744,0.21576272,63024.0,63023.0,0.05980847]
[1728801403411,0.1681237,63024.0,63023.0,0.05980847]
[1728801404500,0.23958224,63024.0,63023.0,0.05980847]
[1728801404730,0.26443465,63024.0,63023.0,0.05980847]
[1728801405215,0.26443465,63024.0,63023.0,0.0598085]
[1728801407684,0.1681237,63024.0,63023.0,0.0598085]
[1728801408357,0.43929908,63024.0,63023.0,0.0598085]
[1728801411942,1.70329908,63024.0,63023.0,0.0598085]
[1728801412163,1.728152,63024.0,63023.0,0.0598085]
[1728801412413,1.728232,63024.0,63023.0,0.0598085]
[1728801414524,1.63291096,63024.0,63023.0,0.0598085]
[1728801414948,1.75207401,63024.0,63023.0,0.05484]
[1728801416629,1.63291096,63024.0,63023.0,0.05980874]
[1728801417108,1.74482213,63024.0,63023.0,0.05980874]
[1728801417289,1.74484445,63024.0,63023.0,0.05980874]
[1728801417950,1.74484445,63024.0,63023.0,0.05980877]
[1728801418378,1.71999153,63024.0,63023.0,0.03680877]
[1728801418592,1.71999153,63024.0,63023.0,0.04180877]
[1728801418805,1.71999153,63024.0,63023.0,0.04680877]
[1728801419015,1.71999153,63024.0,63023.0,0.04180877]
[1728801419485,1.71999153,63024.0,63023.0,0.04480877]
[1728801420163,1.71999153,63024.0,63023.0,0.03980877]
[1728801420587,1.71999153,63024.0,63023.0,0.04280877]
[1728801420799,1.71999153,63024.0,63023.0,0.03680877]
[1728801421033,1.60808036,63024.0,63023.0,0.03680877]
[1728801421247,1.60808036,63024.0,63023.0,0.04380877]
[1728801421461,1.60808036,63024.0,63023.0,0.03884]
[1728801421673,1.72722589,63024.0,63023.0,0.04380882]
[1728801421887,1.72722589,63024.0,63023.0,0.03680882]
[1728801422339,1.72722589,63024.0,63023.0,0.04080882]
[1728801422775,1.63293365,63024.0,63023.0,0.04080882]
[1728801423481,1.63293365,63024.0,63023.0,0.04380882]
[1728801423717,1.72824542,63024.0,63023.0,0.04380882]
[1728801424150,1.56957642,63024.0,63023.0,0.04380882]
[1728801424393,1.56957642,63024.0,63023.0,0.20248082]
[1728801424394,1.47426465,63024.0,63023.0,0.20248082]
[1728801424601,1.47426465,63024.0,63023.0,0.20248051]
[1728801425021,1.47426465,63024.0,63023.0,0.04380851]
[1728801425455,1.29830799,63024.0,63023.0,0.04380851]
[1728801425675,1.36979054,63024.0,63023.0,0.04380851]
[1728801426778,1.52845954,63024.0,63023.0,0.04380851]
[1728801426985,1.36979054,63024.0,63023.0,0.04380851]
[1728801428039,1.29830799,63024.0,63023.0,0.04380851]
[1728801428257,1.2734547,63024.0,63023.0,0.04380851]
[1728801428946,1.44937344,63024.0,63023.0,0.04380851]
[1728801429665,0.18537344,63024.0,63023.0,0.04380851]
[1728801430280,0.1853779,63024.0,63023.0,0.04380851]
[1728801430647,0.2806929,63024.0,63023.0,0.04380851]
[1728801430878,0.1853779,63024.0,63023.0,0.04380851]
[1728801431010,0.3440469,63024.0,63023.0,0.04380851]
[1728801431662,0.4393619,63024.0,63023.0,0.04380851]
[1728801432250,0.3440469,63024.0,63023.0,0.04380851]
[1728801432693,0.46421451,63024.0,63023.0,0.04380851]
[1728801435126,0.46424017,63024.0,63023.0,0.04380851]
[1728801436496,0.19297631,63024.0,63023.0,0.04380851]
[1728801437342,0.1681237,63024.0,63023.0,0.04380851]
[1728801437775,0.34407373,63024.0,63023.0,0.04380851]
[1728801438861,0.34407373,63024.0,63023.0,0.0438085]
[1728801439787,0.18540473,63024.0,63023.0,0.0438085]
[1728801440011,0.18540985,63024.0,63023.0,0.0438085]
[1728801440620,0.36893125,63024.0,63023.0,0.0438085]
[1728801443344,0.36893125,63024.0,63023.0,0.05300437]
[1728801444648,0.46427492,63024.0,63023.0,0.05300437]
[1728801445948,0.46427492,63024.0,63023.0,0.0438085]
[1728801448247,0.43942252,63024.0,63023.0,0.0438085]
[1728801449103,0.43942252,63024.0,63023.0,0.05295508]
[1728801449480,0.43942904,63024.0,63023.0,0.05295508]
[1728801451368,0.46428154,63024.0,63023.0,0.05295508]
[1728801458311,0.43943185,63024.0,63023.0,0.05295508]
[1728801459206,0.439432,63024.0,63023.0,0.05295508]
[1728801459661,0.439432,63024.0,63023.0,0.05295513]
[1728801460126,0.439432,63024.0,63023.0,0.04798658]
[1728801460322,0.439432,63024.0,63023.0,0.05295513]
[1728801462027,0.34409237,63024.0,63023.0,0.04995513]
[1728801462232,0.34409237,63024.0,63023.0,0.04795513]
[1728801462638,0.36894501,63024.0,63023.0,0.04598658]
[1728801462843,0.36894501,63024.0,63023.0,0.05095518]
[1728801463055,0.36894501,63024.0,63023.0,0.04595518]
[1728801463228,0.46429201,63024.0,63023.0,0.04695518]
[1728801463454,0.46429201,63024.0,63023.0,0.04795518]
[1728801463806,0.48811955,63024.0,63023.0,0.04795518]
[1728801464021,0.48811955,63024.0,63023.0,0.04695518]
[1728801464862,0.48811955,63024.0,63023.0,0.04595518]
[1728801465065,0.46326691,63024.0,63023.0,0.04595518]
[1728801465333,0.46326691,63024.0,63023.0,0.04795518]
[1728801465545,0.46326691,63024.0,63023.0,0.04895518]
[1728801465958,0.46326691,63024.0,63023.0,0.04695518]
[1728801466832,0.46326691,63024.0,63023.0,0.04795518]
[1728801467457,0.46326691,63024.0,63023.0,0.04795519]
[1728801468409,0.46326691,63024.0,63023.0,0.04695519]
[1728801468529,0.46326691,63024.0,63023.0,0.04895519]
[1728801468940,0.46326691,63024.0,63023.0,0.05295519]
[1728801471077,0.46326691,63024.0,63023.0,0.04798658]
[1728801471294,0.46326691,63024.0,63023.0,0.05295519]
[1728801472749,0.46326691,63024.0,63023.0,0.04895519]
[1728801473207,0.46326691,63024.0,63023.0,0.05095519]
[1728801473428,0.46336965,63024.0,63023.0,0.05095519]
[1728801473649,0.46336965,63024.0,63023.0,0.04795519]
[1728801473858,0.46336965,63024.0,63023.0,0.05195519]
[1728801474500,0.34415362,63024.0,63023.0,0.05195519]
[1728801474918,0.34415362,63024.0,63023.0,0.04995523]
[1728801475366,0.34415362,63024.0,63023.0,0.04895523]
[1728801476032,0.34415362,63024.0,63023.0,0.05095523]
[1728801477145,1.60815362,63024.0,63023.0,0.04598658]
[1728801478193,1.60814524,63024.0,63023.0,0.04598658]
[1728801481573,1.60813931,63024.0,63023.0,0.04598658]
[1728801482646,1.60813931,63024.0,63023.0,0.04398658]
[1728801482854,1.60813931,63024.0,63023.0,0.04098658]
[1728801483054,1.60813931,63024.0,63023.0,0.04298658]
[1728801486378,1.60812863,63024.0,63023.0,0.03880869]
[1728801486805,1.71052863,63024.0,63023.0,0.03880869]
[1728801487070,2.11052863,63024.0,63023.0,0.002]
[1728801487474,2.11052863,63024.0,63023.0,0.001]
[1728801487683,0.158677,63021.0,63020.0,0.03184]
[1728801487917,0.158677,63021.0,63020.0,0.03680907]
[1728801488163,0.34428104,63021.0,63020.0,0.03680907]
[1728801488924,1.60828104,63021.0,63020.0,0.03680907]
[1728801489147,1.60828104,63021.0,63020.0,0.03780907]
[1728801489627,1.60828104,63021.0,63020.0,0.03880907]
[1728801490794,1.60828104,63021.0,63020.0,0.03680907]
[1728801491712,1.60928104,63021.0,63020.0,0.03680907]
[1728801492367,1.61028104,63021.0,63020.0,0.03680907]
[1728801492558,1.72942545,63021.0,63020.0,0.03680907]
[1728801493491,1.61028104,63021.0,63020.0,0.03680907]
[1728801493700,1.70559199,63021.0,63020.0,0.03680907]
[1728801493918,1.70559199,63021.0,63020.0,0.03184]
[1728801494134,1.70559199,63021.0,63020.0,0.03680891]
[1728801494611,1.61028104,63021.0,63020.0,0.03680891]
[1728801495739,1.54691212,63021.0,63020.0,0.55611192]
[1728801495966,1.34707674,63021.0,63020.0,0.55114301]
[1728801496194,1.32325067,63021.0,63020.0,0.55114301]
[1728801496622,1.27559911,63021.0,63020.0,0.55114301]
[1728801497096,1.32125067,63021.0,63020.0,0.55114301]
[1728801497329,1.32125067,63021.0,63020.0,0.55414301]
[1728801497552,1.27359911,63021.0,63020.0,0.55414301]
[1728801497757,1.27359911,63021.0,63020.0,0.55114301]
[1728801497977,1.27359911,63021.0,63020.0,0.55414301]
[1728801498181,1.27359911,63021.0,63020.0,0.55714301]
[1728801498613,1.27359911,63021.0,63020.0,0.56314301]
[1728801498821,1.27359911,63021.0,63020.0,0.55114301]
[1728801499049,1.27359911,63021.0,63020.0,0.55914301]
[1728801499727,1.27359911,63021.0,63020.0,0.5641115]
[1728801500793,0.00959911,63021.0,63020.0,0.5491115]
[1728801501673,0.01041911,63021.0,63020.0,0.5491115]
[1728801502309,0.01041911,63021.0,63020.0,0.54911155]
[1728801512657,0.01041911,63021.0,63020.0,0.39043255]
[1728801514176,0.01041911,63021.0,63020.0,0.39043254]
[1728801515284,0.01041911,63021.0,63020.0,0.54911154]
[1728801520995,0.01041911,63021.0,63020.0,0.45111154]
[1728801521704,0.01041911,63021.0,63020.0,0.44614301]
[1728801521935,0.01041911,63021.0,63020.0,0.45111154]
[1728801529082,0.01041911,63021.0,63020.0,0.21403254]
[1728801529514,0.01041911,63021.0,63020.0,0.21403257]
[1728801534679,0.05806678,63021.0,63020.0,0.21403257]
[1728801538681,0.01041911,63021.0,63020.0,0.21403257]
[1728801540535,0.08192676,63021.0,63020.0,0.21403257]
[1728801541537,0.01041911,63021.0,63020.0,0.20906401]
[1728801541789,0.01041911,63021.0,63020.0,0.21403257]
[1728801555923,0.01041911,63021.0,63020.0,0.20906401]
[1728801556132,0.01041911,63021.0,63020.0,0.21403257]
[1728801560599,0.01041911,63021.0,63020.0,0.53971157]
[1728801560852,0.0819605,63021.0,63020.0,0.56271157]
[1728801561131,0.0819605,63021.0,63020.0,0.77462274]
[1728801561132,0.01041911,63021.0,63020.0,0.77462274]
[1728801561373,0.01041911,63021.0,63020.0,0.88653391]
[1728801561579,0.00082,63021.0,63020.0,0.88653391]
[1728801561788,0.00082,63021.0,63020.0,0.87853391]
[1728801562297,0.00082,63021.0,63020.0,0.89153391]
[1728801562507,0.0494463,63031.0,63030.0,0.59240517]
[1728801562715,0.0494463,63031.0,63030.0,0.75859774]
[1728801562959,0.00975749,63031.0,63030.0,0.75859774]
[1728801563179,0.00082,63033.0,63032.0,0.313489]
[1728801563395,0.00082,63033.0,63032.0,0.47968157]
[1728801563857,0.00082,63033.0,63032.0,0.47471301]
[1728801564082,0.00082,63033.0,63032.0,0.47968003]
[1728801564289,0.00082,63033.0,63032.0,0.48868003]
[1728801565788,0.00082,63033.0,63032.0,0.49768003]
[1728801567110,0.00082,63033.0,63032.0,0.49768017]
[1728801568451,0.00082,63033.0,63032.0,0.50678459]
[1728801570921,0.00082,63033.0,63032.0,0.50181743]
[1728801571182,0.00082,63033.0,63032.0,0.5067847]
[1728801571835,0.00082,63033.0,63032.0,0.4977847]
[1728801572038,0.00082,63033.0,63032.0,0.4887847]
[1728801572546,0.00082,63033.0,63032.0,0.4977847]
[1728801572776,0.00082,63033.0,63032.0,0.5067847]
[1728801573223,0.00082,63033.0,63032.0,0.4887847]
[1728801573440,0.00082,63033.0,63032.0,0.4997847]
[1728801573656,0.00082,63033.0,63032.0,0.5107847]
[1728801578339,0.00082,63033.0,63032.0,0.50581743]
[1728801578554,0.00082,63033.0,63032.0,0.51078465]
[1728801582537,0.00082,63033.0,63032.0,0.51078456]
[1728801583245,0.00082,63033.0,63032.0,0.49978456]
[1728801584345,0.00082,63033.0,63032.0,0.48878456]
[1728801584786,0.00082,63033.0,63032.0,0.49978456]
[1728801585276,0.00082,63033.0,63032.0,0.51078456]